Cogmind - Beta 11 X6 @@@ ROGUE MODE // 2021.07.23 @ 22:21:36 Player: 7v Death Result: Destroyed by 7V-RTL with Railgun Performance ------------- Evolutions (1) 500 Regions Visited (6) 1200 Robots Destroyed (44) 220 Value Destroyed (718) 718 Prototype IDs (25) 500 Alien Tech Used (0) 0 Bonus (304) 304 TOTAL SCORE: 3442 Bonus ------- Follower Combat Kills 178 Aligned with FarCom 300 Friendly Fire -174 Cogmind --------- Core Integrity 0/400 Matter 22/300 Energy 61/100 System Corruption 0% Temperature Cool (66) Movement Core (850) Ox16 Location -8/Mines Parts ------- > --- POWER (1) -------- (None) > --- PROPULSION (4) --- (None) > --- UTILITY (2) ------ High-capacity Storage Unit > --- WEAPON (2) ------- Particle Cannon Advanced Assault Cannon > --- INVENTORY (20) --- Cooling System Experimental Sensor Array Shield Generator Hacking Suite Hacking Suite Hacking Suite Hacking Suite Light EM Pulse Cannon Rocket Launcher Peak State ------------ > --- POWER ------------ Improved Ion Engine > --- PROPULSION ------- Light Treads Light Treads Light Treads Light Treads > --- UTILITY ---------- High-capacity Storage Unit Experimental Sensor Array > --- WEAPON ----------- Greatsword > --- INVENTORY -------- Improved Ion Engine Light Treads Light Treads Cooling System Light Armor Plating Hardened Light Armor Plating Shield Generator Shield Generator Hacking Suite Hacking Suite Hacking Suite Hacking Suite Splice Drone Bay Heavy Assault Rifle Autogun Advanced Assault Cannon Rocket Launcher Plasma Cutter [Rating: 28] Favorites ----------- Power Improved Ion Engine Engine Improved Ion Engine Power Core Light Nuclear Core Propulsion Light Treads Treads Light Treads Leg Aluminum Leg Utility Hardened Light Armor Plating Device Shield Generator Storage High-capacity Storage Unit Processor Seismic Analyzer Protection Hardened Light Armor Plating Weapon Rocket Launcher Energy Gun EM Pulse Gun Energy Cannon Particle Cannon Ballistic Gun Assault Rifle Ballistic Cannon Battle Cannon Launcher Rocket Launcher Special Weapon Mining Laser Slashing Weapon Greatsword Build | -11 -10 -10 -9 -9 -9 -8 ------- Run | Scr Mat Min Mat Min Exi Min Slots Evolved 2 | . . . 2 . . . Power . | . . . . . . . Propulsion 2 | . . . 2 . . . Utility . | . . . . . . . Weapon . | . . . . . . . Parts Attached 74 | 10 12 6 18 11 1 16 Power 7 | 1 1 2 2 . . 1 Engine 5 | 1 1 1 1 . . 1 Core 2 | . . 1 1 . . . Reactor . | . . . . . . . Propulsion 18 | 4 3 2 5 2 . 2 Treads 16 | 2 3 2 5 2 . 2 Leg 2 | 2 . . . . . . Wheel . | . . . . . . . Hover . | . . . . . . . Flight . | . . . . . . . Utility 20 | 2 3 . 6 2 1 6 Device 9 | 1 . . 2 2 . 4 Storage 3 | . 1 . 2 . . . Processor 1 | 1 . . . . . . Hackware . | . . . . . . . Protection 7 | . 2 . 2 . 1 2 Artifact . | . . . . . . . Weapon 29 | 3 5 2 5 7 . 7 Energy Gun 1 | 1 . . . . . . Energy Cannon 8 | . . . 3 4 . 1 Ballistic Gun 10 | 2 4 . . 2 . 2 Ballistic Cannon 3 | . . 1 . . . 2 Launcher 4 | . . 1 2 1 . . Special Weapon 2 | . 1 . . . . 1 Impact Weapon . | . . . . . . . Slashing Weapon 1 | . . . . . . 1 Piercing Weapon . | . . . . . . . Special Melee Weapon . | . . . . . . . Unidentified Prototypes 2 | . . . . 1 . 1 Parts Lost 16 | . . . . . . 16 Power 2 | . . . . . . 2 Propulsion 6 | . . . . . . 6 Utility 4 | . . . . . . 4 Weapon 4 | . . . . . . 4 Highest Loss Streak 16 | . . . . . . 16 Average Slot Usage (%) 98 | . 100 100 99 100 100 80 Engine 9 | . 14 10 4 11 11 8 Core 2 | . . 3 6 . . . Treads 36 | . 27 28 43 44 44 36 Device 5 | . 9 . 8 11 7 6 Storage 6 | . 9 . 6 11 11 11 Protection 12 | . 8 28 7 . 3 3 Energy Cannon 7 | . . . 8 20 22 1 Ballistic Gun 6 | . 27 11 . . . 4 Ballistic Cannon 4 | . . 8 5 . . 1 Launcher 5 | . . 8 8 1 . . Naked Turns . | . . . . . . . Heaviest Build 63 | 7 17 22 57 57 58 63 Greatest Support 80 | 40 40 40 80 80 80 80 Greatest Overweight (x) . | . . . . . . . Average Overweight (x) . | . . . . . . . Largest Inventory Capacity 20 | 5 8 5 20 20 20 20 Average Capacity 11 | 5 6 5 13 20 20 20 Most Carried 20 | 5 8 5 20 20 20 20 Average Carried 10 | . 6 4 9 19 19 16 Final Capacity 20 | 5 5 5 20 20 20 20 Final Carried 20 | 5 5 5 20 20 20 9 Class Distribution -------------------- 72% | Mutant 27% | Scavenger-Mutant Dominant Class ---------------- Mutant | -10/Materials Mutant | -10/Mines Mutant | -9/Materials Scavenger-Mutant | -9/Mines Scavenger-Mutant | -9/Exiles Scavenger-Mutant | -8/Mines Resources | -11 -10 -10 -9 -9 -9 -8 ----------- Run | Scr Mat Min Mat Min Exi Min Matter Collected 1127 | 354 134 319 195 125 . . Remotely . | . . . . . . . Salvage Created 1502 | 209 250 198 583 155 . 107 Parts 87 | 15 15 3 45 8 . 1 Haulers Intercepted 3 | . 1 . 2 . . . Recyclers Shooed . | . . . . . . . Parts Field Recycled . | . . . . . . . Retrieved Matter . | . . . . . . . Parts Self-Destructed . | . . . . . . . Prevented . | . . . . . . . Kills | -11 -10 -10 -9 -9 -9 -8 ------- Run | Scr Mat Min Mat Min Exi Min Combat Hostiles Destroyed 35 | . 3 14 10 7 . 1 Guns 11 | . 3 5 . 3 . . Cannons 16 | . . 4 10 2 . . AOE 8 | . . 5 . 2 . 1 Classes Destroyed 10 | 3 2 2 3 . . . Worker 5 | 2 1 . 2 . . . Tunneler 4 | 4 . . . . . . Hauler 3 | . 1 . 2 . . . Recycler 5 | 1 2 1 1 . . . Operator 2 | . . . 2 . . . Watcher 1 | . . . 1 . . . Swarmer 11 | . 3 . 4 4 . . Grunt 9 | . . 2 2 3 . 2 Sentry 4 | . . . 4 . . . Assembled 12 | . . 12 . . . . Best Kill Streak 6 | 3 3 4 6 4 . 1 Combat Bots Only 4 | . 3 4 4 4 . 1 Max Kills in Single Turn 3 | 1 1 3 2 1 . 1 Gunslinging . | . . . . . . . Exploded 3 | . . 3 . 1 . 1 Melee . | . . . . . . . Uniques/NPCs Destroyed . | . . . . . . . Combat | -11 -10 -10 -9 -9 -9 -8 -------- Run | Scr Mat Min Mat Min Exi Min Damage Taken 3246 | . 79 560 50 136 . 2421 Core 469 | . . 49 . 17 . 403 Absorbed by Shields 90 | . . . 20 57 . 13 Core Remaining (%) 90 | 100 . 80 . . . . Volleys Fired 146 | 27 14 33 22 12 1 37 Largest 2 | 2 2 2 2 2 1 2 Hottest 124 | 40 100 72 124 124 56 124 Shots Fired 243 | 54 25 53 29 22 1 59 Gun 162 | 54 22 36 . 8 . 42 Cannon 62 | . . 8 29 12 1 12 Launcher 11 | . . 9 . 2 . . Special 8 | . 3 . . . . 5 Kinetic 175 | 54 22 44 5 8 . 42 Thermal 35 | . 3 . 15 6 . 11 Explosive 11 | . . 9 . 2 . . Electromagnetic 22 | . . . 9 6 1 6 Robot Hit Streak 22 | 6 9 12 16 9 2 22 Robot Miss Streak 4 | 4 3 2 2 4 . 1 Penetration Max . | . . . . . . . Secondary Targets 2 | . . 1 . 1 . . Max Gunslinging Chain 1 | . . 1 . 1 . . Shots Hit Robots 181 | 29 15 32 23 12 1 69 Core Hits 90 | 14 10 22 16 9 . 19 Critical Kills 1 | . 1 . . . . . Critical Parts Destroyed 1 | 1 . . . . . . Critical Strikes 4 | 1 1 . 1 . . 1 Destroy 2 | 1 1 . . . . . Blast 1 | . . . 1 . . . Sever 1 | . . . . . . 1 Melee Attacks 21 | . . . . . . 21 Impact . | . . . . . . . Slashing 21 | . . . . . . 21 Piercing . | . . . . . . . Sneak Attacks . | . . . . . . . Combat Hostiles . | . . . . . . . Follow-up Attacks . | . . . . . . . Damage Inflicted 3913 | 216 153 811 588 472 20 1653 Guns 1371 | 216 152 316 . 120 . 567 Cannons 1014 | . . 104 517 131 20 242 Explosions 562 | . . 358 . 204 . . Melee 796 | . . . . . . 796 Ramming 122 | . 1 33 71 17 . . Kinetic 1563 | 216 152 420 88 120 . 567 Thermal 511 | . . . 297 45 . 169 Explosive 562 | . . 358 . 204 . . Electromagnetic 359 | . . . 132 86 20 121 Impact . | . . . . . . . Slashing 796 | . . . . . . 796 Piercing . | . . . . . . . Highest Corruption . | . . . . . . . Average Corruption . | . . . . . . . Corruption Purged . | . . . . . . . Overload Shots . | . . . . . . . Overflow Damage 17 | . . 10 4 3 . . Projectiles 7 | . . . 4 3 . . Explosions 10 | . . 10 . . . . Melee . | . . . . . . . Knockbacks 3 | . . 1 2 . . . Impact 1 | . . . 1 . . . Kinetic 2 | . . 1 1 . . . Secondary . | . . . . . . . Self-Inflicted Damage 157 | . . 126 . 31 . . Shots 5 | . . 4 . 1 . . Rammed 19 | . 1 10 7 1 . . Targets Rammed 22 | . 1 11 9 1 . . Kicked . | . . . . . . . Crushed 3 | . . 1 2 . . . Highest Temperature 228 | . 60 46 114 228 18 168 Average Temperature 40 | . 18 20 34 106 13 41 Received Heat Transfer 663 | . . 143 6 22 . 492 Effects 1 | . . . . 1 . . Energy Bleed 1 | . . . . 1 . . Siege Activations . | . . . . . . . Robots Corrupted . | . . . . . . . Combat Hostiles . | . . . . . . . Parts Fried . | . . . . . . . Impact Corruptions 1 | . . . 1 . . . Robots Melted . | . . . . . . . Combat Hostiles . | . . . . . . . Parts Melted 2 | . . . 1 . . 1 Heat Transferred 682 | . . . 518 74 . 90 Parts Sabotaged . | . . . . . . . Parts Stolen . | . . . . . . . Parts Stripped . | . . . . . . . Power Chain Reactions . | . . . . . . . Missiles Intercepted . | . . . . . . . Alert | -11 -10 -10 -9 -9 -9 -8 ------- Run | Scr Mat Min Mat Min Exi Min Peak Influence 278 | 35 104 58 265 278 . 58 Initial 103 | . 22 8 . 103 . . Average 65 | 23 51 14 95 158 . 35 Maximum Alert Level 1 | . . . 1 1 . . Low Security (%) 91 | 100 100 100 86 67 . 100 Level 1 8 | . . . 13 32 . . Level 2 . | . . . . . . . Level 3 . | . . . . . . . Level 4 . | . . . . . . . Level 5 . | . . . . . . . High Security . | . . . . . . . Max Security . | . . . . . . . Squads Dispatched 4 | . . . 3 1 . . Investigation 2 | . . . 1 1 . . Extermination . | . . . . . . . Reinforcement 2 | . . . 2 . . . Assault . | . . . . . . . Garrison . | . . . . . . . Intercept . | . . . . . . . Construction Impeded . | . . . . . . . Haulers Reinforced . | . . . . . . . Active Scanning Responses . | . . . . . . . Cargo Convoy Interrupts . | . . . . . . . Stealth | -11 -10 -10 -9 -9 -9 -8 --------- Run | Scr Mat Min Mat Min Exi Min Distress Signals 5 | . 1 2 2 . . . Communications Jammed . | . . . . . . . Distress Signals . | . . . . . . . Times Spotted 57 | . 6 15 24 6 . 6 Peak Tracking Total 4 | . 4 4 4 4 2 4 Tactical Retreats 3 | . . 1 1 . . 1 Traps | -11 -10 -10 -9 -9 -9 -8 ------- Run | Scr Mat Min Mat Min Exi Min Traps Triggered . | . . . . . . . Indirectly . | . . . . . . . Trap Hack Attempts . | . . . . . . . Triggered . | . . . . . . . Disarmed . | . . . . . . . Reprogrammed . | . . . . . . . Reused . | . . . . . . . Traps Extracted . | . . . . . . . Installed . | . . . . . . . Triggered . | . . . . . . . Exploded 1 | . . . . . 1 . Machines | -11 -10 -10 -9 -9 -9 -8 ---------- Run | Scr Mat Min Mat Min Exi Min Machines Disabled . | . . . . . . . Max in Single Turn . | . . . . . . . Machines Sabotaged . | . . . . . . . Garrisons Compromised . | . . . . . . . Overloaded Fab Kills . | . . . . . . . Fab Network Shutdowns . | . . . . . . . Hacking | -11 -10 -10 -9 -9 -9 -8 --------- Run | Scr Mat Min Mat Min Exi Min Machines Accessed 12 | . 4 . 4 2 2 . Terminals 7 | . 4 . 3 . . . Fabricators . | . . . . . . . Repair Stations . | . . . . . . . Recycling Units 1 | . . . 1 . . . Scanalyzers . | . . . . . . . Garrison Access . | . . . . . . . Total Hacks 27 | . 12 . 11 2 2 . Successful 12 | . 4 . 4 2 2 . Failed 15 | . 8 . 7 . . . Catastrophic 3 | . 2 . 1 . . . Database Lockouts . | . . . . . . . Manual 8 | . 4 . 3 . 1 . Terminals 21 | . 12 . 9 . . . Fabricators . | . . . . . . . Repair Stations . | . . . . . . . Recycling Units 2 | . . . 2 . . . Scanalyzers . | . . . . . . . Garrison Access . | . . . . . . . Terminal Hacks 11 | . 4 . 3 2 2 . Record 1 | . . . . . 1 . Robot Analysis 3 | . 2 . 1 . . . Open Door 2 | . . . . 2 . . Locate Traps 1 | . 1 . . . . . Patrol Status 1 | . . . 1 . . . Hauler Manifests 1 | . 1 . . . . . Zone Layout 1 | . . . 1 . . . EX-Prototype ID Bank 1 | . . . . . 1 . Fabricator Hacks . | . . . . . . . Repair Station Hacks . | . . . . . . . Recycling Unit Hacks . | . . . . . . . Scanalyzer . | . . . . . . . Garrison Access Hacks . | . . . . . . . Unauthorized Hacks 1 | . . . 1 . . . Terminals . | . . . . . . . Fabricators . | . . . . . . . Repair Stations . | . . . . . . . Recycling Units 1 | . . . 1 . . . Tunnel 1 | . . . 1 . . . Scanalyzers . | . . . . . . . Garrison Access . | . . . . . . . Data Cores Recovered 1 | . . . 1 . . . Used . | . . . . . . . Hacking Detections 7 | . 4 . 3 . . . Full Trace Events . | . . . . . . . Feedback Events . | . . . . . . . Feedback Blocked . | . . . . . . . Robot Schematics Acquired . | . . . . . . . Robots Built . | . . . . . . . Matter . | . . . . . . . Time . | . . . . . . . Total Robot Build Rating . | . . . . . . . Part Schematics Acquired . | . . . . . . . Parts Built . | . . . . . . . Matter . | . . . . . . . Time . | . . . . . . . Total Part Build Rating . | . . . . . . . Parts Repaired . | . . . . . . . Time . | . . . . . . . Parts Recycled . | . . . . . . . Recycled Matter . | . . . . . . . Retrieved Matter . | . . . . . . . Retrieved Components . | . . . . . . . Parts Scanalyzed . | . . . . . . . Part Schematics Acquired . | . . . . . . . Parts Damaged . | . . . . . . . Bothacking | -11 -10 -10 -9 -9 -9 -8 ------------ Run | Scr Mat Min Mat Min Exi Min Used RIF Installer . | . . . . . . . Robots Hacked . | . . . . . . . Non-combat . | . . . . . . . Combat . | . . . . . . . Robot Hacks Applied . | . . . . . . . Relay Couplers Released . | . . . . . . . Robots Rewired . | . . . . . . . Allies Hacked . | . . . . . . . Hacks Repelled . | . . . . . . . Allies | -11 -10 -10 -9 -9 -9 -8 -------- Run | Scr Mat Min Mat Min Exi Min Total Allies 4 | . . 3 . . . 1 Largest Group 3 | . . 3 3 . . 1 Highest-Rated Group 40 | . . 40 40 . . 21 Highest-Rated Ally 21 | . . 16 16 . . 21 Total Orders 3 | . . . . 2 . 1 RETURN 3 | . . . . 2 . 1 Ally Attacks 33 | . . 3 23 . . 7 Total Damage 372 | . . 39 280 . . 53 Kills 7 | . . 1 5 . . 1 Allies Corrupted . | . . . . . . . Allies Melted . | . . . . . . . Intel | -11 -10 -10 -9 -9 -9 -8 ------- Run | Scr Mat Min Mat Min Exi Min Robot Analysis Total 3 | . 2 . 1 . . . Derelict Logs Recovered 3 | . . 1 . 2 . . Drone Launches 9 | . . . . 2 . 7 Drone Recoveries 9 | . . . . 2 . 7 Exploration | -11 -10 -10 -9 -9 -9 -8 ------------- Run | Scr Mat Min Mat Min Exi Min Turns Passed 5528 | 296 526 1696 1355 786 572 297 Spaces Moved 2684 | 147 261 826 645 405 341 59 Core 13 | 13 . . . . . . Treads 2631 | 100 255 826 645 405 341 59 Legs 40 | 34 6 . . . . . Wheels . | . . . . . . . Hover . | . . . . . . . Flight . | . . . . . . . Fastest Speed 50 | 50 120 160 160 160 160 160 Average Speed 158 | 141 159 160 160 160 160 160 Slowest Speed 160 | 160 160 160 160 160 160 160 Overloaded Moves . | . . . . . . . Propulsion Burnouts . | . . . . . . . Robots Hopped . | . . . . . . . Cave-ins Triggered . | . . . . . . . Exploration Rate (%) 51 | 9 46 98 47 82 70 11 Regions Visited 6 Branch Regions 4 Pre-discovered Areas 3 | . . 1 1 . 1 . Known Exits Taken . | . . . . . . . Unknown Exits Taken 6 | 1 1 1 1 1 1 . Scrap Searched 2 | . . 1 . 1 . . Spaces Dug 56 | . 2 28 . 25 . 1 Terrain Destroyed 107 | . 3 76 . 27 . 1 Melee 1 | . . . . . . 1 Projectile 5 | . 3 . . 2 . . AOE 101 | . . 76 . 25 . . Terrain Rammed . | . . . . . . . Walls Destroyed . | . . . . . . . Machines Disabled . | . . . . . . . Actions | -11 -10 -10 -9 -9 -9 -8 --------- Run | Scr Mat Min Mat Min Exi Min Total 3661 | 188 347 1143 934 519 371 159 Wait 620 | . 37 255 209 84 13 22 Move 2678 | 146 260 825 644 404 340 59 Hop . | . . . . . . . Pick Up 49 | 3 8 5 21 2 8 2 Fast Attach 22 | 9 6 3 3 1 . . Attach 24 | . 2 2 5 2 1 12 Detach 6 | 2 2 . 1 1 . . Swap 28 | 1 4 1 10 8 . 4 Drop 45 | . 13 8 10 4 8 2 Fire 146 | 27 14 33 22 12 1 37 Melee 21 | . . . . . . 21 Ram . | . . . . . . . Kick . | . . . . . . . Crush 22 | . 1 11 9 1 . . Escape Stasis . | . . . . . . . Rewire . | . . . . . . . Trap . | . . . . . . . Miscellaneous . | . . . . . . . Route ------- -11/Scrapyard -10/Materials -10/Mines -9/Materials (discovered 3 exits: [*Mat] / *Min x2) -9/Mines (discovered 3 exits: [*Mat x2] / *Exi) -9/Exiles -8/Mines History --------- Turn | Location | Event 2 | -11/Scrapyard | Discovered new exit (range 16) 297 | -11/Scrapyard | Entered Materials 333 | -10/Materials | Build established: Mutant 752 | -10/Materials | Discovered new exit (range 14) 823 | -10/Materials | Entered Mines 944 | -10/Mines | Learned location of Zion (-6) 978 | -10/Mines | Assembled infested the area 1472 | -10/Mines | Received a Rocket Launcher from a helpful Derelict 1504 | -10/Mines | A weapon hastily lodged in a ceiling crevice suddenly fell to the ground 1606 | -10/Mines | Discovered new exit (range 9) 1800 | -10/Mines | Found a damaged Exp. Sensor Array with a note attached 1814 | -10/Mines | Found Prototype Device 1902 | -10/Mines | Assisted by bots powering up and referring to "LRC-V3" 2519 | -10/Mines | Entered Materials 2519 | -9/Materials | Accompanied by 3 allies 2519 | -9/Materials | Evolved 2 slots: Propulsion x2 2521 | -9/Materials | Discovered new exit (range 15) 3578 | -9/Materials | Discovered new exit (range 16) 3819 | -9/Materials | Discovered new exit (range 14) 3874 | -9/Materials | Entered Mines 3881 | -9/Mines | Met a Derelict bent on vengeance 4041 | -9/Mines | Discovered new exit (range 14) 4141 | -9/Mines | Discovered new exit (range 9) 4175 | -9/Mines | Build established: Scavenger-Mutant 4351 | -9/Mines | Met a Derelict shopkeep closing up shop 4512 | -9/Mines | Found the Drone Emporium 4523 | -9/Mines | Learned Materials terminal intel 4526 | -9/Mines | Found Prototype Device 4526 | -9/Mines | Identified Splice Drone Bay 4583 | -9/Mines | Learned Materials stockpile data 4652 | -9/Mines | Deemed a non-threat by the Exiles lab entrance 4653 | -9/Mines | Discovered new exit (range 5) 4660 | -9/Mines | Entered Exiles 4699 | -9/Exiles | Met 8R-AWN 4726 | -9/Exiles | Met EX-HEX 4785 | -9/Exiles | Met EX-DEC 4984 | -9/Exiles | Met EX-BIN 5004 | -9/Exiles | Aligned with FarCom system 5006 | -9/Exiles | Given EX-Vault access code 5044 | -9/Exiles | Opened EX-Vault 5098 | -9/Exiles | Warned to stay clear of 0b10 Research branches 5121 | -9/Exiles | Exiles lab attacked by MAIN.C 5198 | -9/Exiles | Discovered new exit (range 14) 5231 | -9/Exiles | Attacked by the Exiles 5232 | -9/Exiles | Entered Mines 5246 | -8/Mines | Identified Exp. Sensor Array 5336 | -8/Mines | 7V-RTL came to Exiles' defense 5464 | -8/Mines | Core integrity fell below 50% 5503 | -8/Mines | Core integrity fell below 20% 5529 | -8/Mines | Destroyed by 7V-RTL with Railgun Last Messages --------------- 05497_ U-05 Engineer builds a Wall. 05499_ Lgt. Treads destroyed. 05502_ K-01 Serf collects debris. 05508_ Penetrated by Slug. 05508_ Slug penetrates U-05 Engineer. 05508_ U-05 Engineer destroyed. 05508_ Shield Generator destroyed. 05508_ K-01 Serf collects debris. 05514_ Hvy. Assault Rifle destroyed. 05517_ K-01 Serf collects debris. 05517_ U-05 Engineer builds a Wall. 05517_ Penetrated by Slug. 05520_ K-01 Serf collects debris. 05520_ Slug penetrates U-05 Engineer. 05520_ U-05 Engineer destroyed. 05520_ Slug penetrates Wall. 05520_ Autogun destroyed. 05524_ K-01 Serf collects debris. 05526_ Penetrated by Slug. 05529_ K-01 Serf collects debris. Map ----- +----------------------------------------------------+ | ???????????????????????????????????? | | ???????????????????????????????????? | | ???????????????????????????????????? | | ???????????????????????????????????? | | ???????????????????????????????????? | | ???????????????????????????????????? | | ???????????????????????????????????? | | ???????????????????????????????????? | | ???????????????????????????????????? | | ???????????????????????????????????? | | ???????????????????????????????????? | | ???????????????????????????????????? | | ???????????????????????????????????? | | ???????????????????????????????????? | | ?????????????????????? ????????????? | | ?????????##?????????? ?????????????? | | ?????????# ????????# ??????????????? | | ????###### ???????# #??????????????? | | ???#############?# #???????????????? | | ???### % |;## #????????????????? | | ???## *%!# #?????????????????? | | ???## %* ! ;#??????????????????? | | ???##% k* ##??????????????????? | | ???## =%!##??????????????????? | | ????## |!#???????????????????? | | ?????##### @ #"#??????????????????? | | ?????????#Y######??####????????????? | | ?????????#g###?????# ?????????????? | | ?????????# #?????### #?????????????? | | ?????????# #????## #?????????????? | | ?????????# #????# ##????????????? | | ?????????# #????# ##???????????? | | ??????#### ###### #???????????? | | ??????# #???????????? | | ??????# ## ##???????????? | | ??????# ########## ###????????????? | | ??????# #????????# #??????????????? | | ??????# #????????# #??????????????? | | ??????# #????????# #??????????????? | | ??????# #????????# #??????????????? | | ??????# #????????# #??????????????? | | ??????# ???????? #??????????????? | | ??????## ???????? ??????????????? | | ????????#???????? ??????????????? | | ????????????????? ??????????????? | | ????????????????? ??????????????? | | ?????????????????? ?????????????? | | ???????????????????????????????????? | | ???????????????????????????????????? | | ???????????????????????????????????? | +----------------------------------------------------+ Best States ------------- Heat Dissipation 50 Energy Generation 14 Energy Capacity 265 Matter Stores 300 Matter Capacity 300 Sight Range 16 Robot Scan Range 20 Terrain Scan Range 16 Terrain Scan Density 60 Armor Coverage 300 Evasion (%) 50 Recoil Reduction 4 Item Schematics ----------------- None Robot Schematics ------------------ None Fabricated ------------ Nothing Alien Tech Used ----------------- None Achievements -------------- None Challenges ------------ None Game ------ Seed PointyFlyingInterrupter Manual? 0 Play Time 00:35:19 Cumulative 2002.8 hours Start 2021.07.23 @ 10:23:45 End 2021.07.23 @ 22:21:36 Sessions 3 Manual Loads 0 Difficulty Rogue Special Mode None Game No. 2604 Rogue 2596 Adventurer 0 Explorer 8 Win Type - Total 221 Types 42/30/83/3/3/5/52/2/1 Lore% 99 Gallery% 99 Achievement% 100 Wizard Run 0 Options --------- ASCII 0 Keyboard 1 Movement Vi Keybinds 1 Fullscreen 1 Font 18/SmallcapsGlow Map View 76x50 Tactical HUD 1 Map Filters NONE Filters NONE Steam 1 RUN: ab4b45c7-bc07-4278-be38-4248d8c6f47d